[Event "LTU-chT 2019"]
[Site "Lithuania"]
[Date "2019.03.31"]
[Round "5.11"]
[White "Stauskas, Lukas"]
[Black "Indriunas, Matas"]
[Result "1-0"]
[ECO "E62"]
[WhiteElo "2357"]
[BlackElo "1908"]
[Annotator "NA"]
[PlyCount "120"]
[EventDate "2019.01.26"]
[EventType "team-tourn"]
[EventCountry "LTU"]
[SourceTitle "playchess.com"]
[Source "ChessBase"]
[SourceQuality "1"]
[TimeControl "40/5400+30:1800+30"]

1. d4 {[%emt 0:00:00]} Nf6 {[%emt 0:00:00]} 2. c4 {[%emt 0:00:00]} g6 {[%emt 0:00:00]} 3. Nf3 {[%emt 0:00:00]} Bg7 {[%emt 0:00:00]} 4. g3 {[%emt 0:00:00]} O-O {[%emt 0:00:00]} 5. Bg2 {[%emt 0:00:03]} d6 {[%emt 0:00:00]} 6. O-O {[%emt 0:00:10]} Nc6 {[%emt 0:00:03]} 7. Nc3 {[%emt 0:00:08]} Bf5 {[%emt 0:00:06]} 8. d5 {[%emt 0:00:06]} Na5 {[%emt 0:00:04] LiveBook: 602 Games} 9. Nd4 {[%emt 0:00:05]} Bd7 {[%emt 0:01:00]} 10. b3 {[%emt 0:00:06]} c5 {[%emt 0:06:40]} 11. dxc6 {[%emt 0:00:16]} Nxc6 {[%emt 0:01:19]} 12. Bb2 {[%emt 0:00:11]} a6 {[%emt 0:12:46]} 13. e3 {[%emt 0:02:59]} Rc8 {[%emt 0:07:55]} 14. Qe2 {[%emt 0:07:43]} Qa5 {[%emt 0:02:50]} 15. Rac1 {[%emt 0:24:42] E60: King's Indian: Unusual lines and Fianchetto Variation without Nc3} (15. Rfd1 Bg4 16. f3 Bd7 17. Rac1 Rfe8 18. a3 Qb6 19. b4 Ne5 20. Nd5 Nxd5 21. cxd5 Ba4 22. Re1 Bb5 23. Nxb5 axb5 {0-1 (57) Saric,A (2540)-Gazik,V (2479) Katowice 2017}) 15... Rfe8 {[%emt 0:02:15]} 16. a3 {[%emt 0:05:41]} Qb6 $146 {[%emt 0:12:21]} ({Predecessor:} 16... Bg4 17. Qd2 Qh5 18. Nde2 Na5 19. Nf4 Nc6 20. Nfe2 Na5 21. Nf4 {½-½ (19) Parkhov,Y (2330)-Budisavljevic,L (2344) Konya 2018}) 17. Na4 {[%emt 0:04:04]} Qd8 {[%emt 0:06:18]} 18. c5 {[%emt 0:03:15]} Nxd4 {[%emt 0:00:57]} 19. Bxd4 {[%emt 0:05:23]} Bxa4 {[%emt 0:02:50]} 20. bxa4 {[%emt 0:00:11]} d5 {[%emt 0:04:04]} 21. Rfd1 {[%emt 0:05:48]} e6 {[%emt 0:02:33]} 22. Qb2 {[%emt 0:04:34]} Qe7 {[%emt 0:00:58]} 23. f4 {[%emt 0:01:30]} Red8 {[%emt 0:04:46]} 24. Rb1 {[%emt 0:01:14]} Rd7 {[%emt 0:00:14]} 25. Rd3 {[%emt 0:00:48]} Ne8 {[%emt 0:03:16]} 26. Rb3 {[%emt 0:00:16]} Rcc7 {[%emt 0:00:56]} 27. Rb6 {[%emt 0:02:06]} f6 {[%emt 0:02:34]} 28. Bh3 {[%emt 0:01:05]} f5 {[%emt 0:01:08]} 29. Bf1 {[%emt 0:01:32]} g5 {[%emt 0:01:36]} 30. Bg2 {[%emt 0:05:11]} Kf7 {[%emt 0:04:53]} 31. Qe2 {[%emt 0:01:28]} g4 {[%emt 0:02:50]} 32. Qb2 {[%emt 0:01:52]} h5 {[%emt 0:01:09]} 33. h3 {[%emt 0:00:59]} Kg8 {[%emt 0:05:31]} 34. hxg4 {[%emt 0:00:36]} hxg4 {[%emt 0:00:10]} 35. Kf2 {[%emt 0:01:10]} Qf7 {[%emt 0:01:23]} 36. a5 {[%emt 0:01:28]} Rxc5 {[%emt 0:00:51]} 37. Bxc5 {[%emt 0:05:56]} (37. Bxg7 {keeps fighting.} Rdc7 38. Qb4 Nxg7 39. Rb2) 37... Bxb2 {[%emt 0:00:13]} 38. R6xb2 {[%emt 0:00:04]} Rc7 {[%emt 0:06:10]} 39. Bd4 {[%emt 0:00:18]} Nf6 {[%emt 0:00:17]} 40. Be5 {[%emt 0:00:24]} Rc5 {[%emt 0:02:26]} 41. Rxb7 {[%emt 0:31:01]} Nd7 {[%emt 0:31:23]} 42. Ra7 $11 {[%emt 0:01:47]} Rc2+ {[%emt 0:01:44]} 43. Kg1 {[%emt 0:00:27]} Qh5 {[%emt 0:00:29]} 44. Ra8+ {[%emt 0:01:47]} Kf7 {[%emt 0:00:00]} 45. Rh8 {[%emt 0:00:00]} Qg6 {[%emt 0:00:00]} 46. Rb7 {[%emt 0:00:00]} Ke7 {[%emt 0:00:00]} 47. Bf1 {[%emt 0:00:00]} Rc1 {[%emt 0:00:00]} 48. Kf2 {[%emt 0:00:00]} Rc2+ {[%emt 0:00:00]} 49. Be2 {[%emt 0:00:00]} Ra2 {[%emt 0:00:00]} 50. Bc3 {[%emt 0:00:00]} Kd6 {[%emt 0:00:00]} 51. Rc8 {[%emt 0:00:00]} Rc2 {[%emt 0:00:00]} 52. Bb4+ {[%emt 0:00:00]} Nc5 {[%emt 0:00:00]} 53. Bxc5+ {[%emt 0:00:00]} Rxc5 {[%emt 0:00:00]} 54. Rb6+ {[%emt 0:00:00]} Ke7 {[%emt 0:00:00]} 55. Rxc5 {[%emt 0:00:00]} Qh5 {[%emt 0:00:00]} 56. Rcc6 {[%emt 0:00:00]} Qh2+ {[%emt 0:00:00]} 57. Ke1 {[%emt 0:00:00]} Qxg3+ {[%emt 0:00:00]} 58. Kd2 {[%emt 0:00:00]} d4 {[%emt 0:00:00]} 59. Rxe6+ {[%emt 0:00:00]} Kf7 {[%emt 0:00:00]} 60. Bc4 {[%emt 0:00:00]} Qf2+ {[%emt 0:00:46]} 1-0

[Event "LTU-chT 2019"]
[Site "Lithuania"]
[Date "2019.03.31"]
[Round "5.12"]
[White "Maziukas, Kasparas"]
[Black "Narmontas, Tauras"]
[Result "1-0"]
[ECO "B03"]
[WhiteElo "1931"]
[BlackElo "2244"]
[Annotator "NA"]
[PlyCount "51"]
[EventDate "2019.01.26"]
[EventType "team-tourn"]
[EventCountry "LTU"]
[SourceTitle "playchess.com"]
[Source "ChessBase"]
[SourceQuality "1"]
[TimeControl "40/5400+30:1800+30"]

{[%evp 8,33,54,35,39,45,22,19,43,47,50,35,65,68,61,22,16,11,41,16,68,39,71,63,32767,32767,32767,77]} 1. e4 {[%emt 0:00:00]} Nf6 {[%emt 0:14:42]} 2. e5 {[%emt 0:00:00]} Nd5 {[%emt 0:00:05]} 3. c4 {[%emt 0:00:13]} Nb6 {[%emt 0:00:04]} 4. d4 {[%emt 0:00:06]} d6 $1 {[%emt 0:00:04]} 5. exd6 {[%emt 0:00:09]} cxd6 {[%emt 0:02:31]} 6. Nc3 {[%emt 0:00:14]} g6 {[%emt 0:00:08]} 7. Be3 {[%emt 0:00:27]} Bg7 {[%emt 0:00:53]} 8. Rc1 {[%emt 0:00:20]} O-O {[%emt 0:00:29]} 9. b3 {[%emt 0:02:18]} Nc6 {[%emt 0:04:04]} 10. d5 {[%emt 0:01:51]} Ne5 {[%emt 0:00:25]} 11. Nf3 {[%emt 0:01:32]} Nxf3+ {[%emt 0:05:15]} 12. Qxf3 {[%emt 0:00:12]} Nd7 {[%emt 0:00:07]} 13. Qd1 {[%emt 0:03:30]} f5 {[%emt 0:04:11]} 14. f4 {[%emt 0:03:57]} g5 {[%emt 0:16:19]} 15. g3 {[%emt 0:07:01]} gxf4 {[%emt 0:00:25]} 16. Bxf4 {[%emt 0:05:01]} b5 {[%emt 0:16:41]} 17. Nxb5 $16 {[%emt 0:05:11]} Nc5 {[%emt 0:04:08]} 18. Qc2 {[%emt 0:15:28]} e5 {[%emt 0:07:28]} 19. dxe6 {[%emt 0:01:28]} Bb7 {[%emt 0:00:17]} 20. Bg2 {[%emt 0:08:23]} Bxg2 {[%emt 0:01:57]} 21. Qxg2 {[%emt 0:01:42]} Nd3+ {[%emt 0:00:01]} 22. Kd2 {[%emt 0:00:35]} Nxc1 {[%emt 0:00:05]} 23. Rxc1 {[%emt 0:06:01]} Qb6 {[%emt 0:10:33]} 24. e7 {[%emt 0:05:06]} Rfe8 {[%emt 0:00:15]} 25. Qd5+ {[%emt 0:01:21]} Kh8 {[%emt 0:00:07]} 26. Nxd6 {[%emt 0:00:26]} 1-0

[Event "LTU-chT 2019"]
[Site "Lithuania"]
[Date "2019.03.31"]
[Round "5.13"]
[White "Dubovikas, Tomas"]
[Black "Likatavicius, Rapolas"]
[Result "1/2-1/2"]
[ECO "B28"]
[WhiteElo "2171"]
[BlackElo "1769"]
[Annotator "NA"]
[PlyCount "36"]
[EventDate "2019.01.26"]
[EventType "team-tourn"]
[EventCountry "LTU"]
[SourceTitle "playchess.com"]
[Source "ChessBase"]
[SourceQuality "1"]
[TimeControl "40/5400+30:1800+30"]

{[%evp 8,22,4,-1,8,-12,-11,0,4,7,14,0,0,0,-8,0,0]} 1. e4 {[%emt 0:00:00]} c5 {[%emt 0:00:00]} 2. Nf3 {[%emt 0:00:28]} a6 {[%emt 0:00:15]} 3. d4 {[%emt 0:01:00]} cxd4 {[%emt 0:00:14]} 4. Nxd4 {[%emt 0:00:02]} Nf6 {[%emt 0:00:11]} 5. Nc3 {[%emt 0:00:07] LiveBook: 189 Games} e5 {[%emt 0:00:05]} 6. Nb3 {[%emt 0:01:14]} Bb4 {[%emt 0:00:24]} 7. Bg5 {[%emt 0:05:41]} h6 {[%emt 0:16:52]} 8. Bxf6 {[%emt 0:08:37]} Bxc3+ {[%emt 0:07:29]} 9. bxc3 {[%emt 0:00:01]} Qxf6 {[%emt 0:00:07]} 10. Bc4 {[%emt 0:01:10]} d6 {[%emt 0:03:32]} 11. Bd5 {[%emt 0:02:40]} Nc6 $11 {[%emt 0:02:39]} 12. Qd3 {[%emt 0:09:34]} O-O {[%emt 0:03:12]} 13. Nd2 {[%emt 0:06:37]} Ne7 {[%emt 0:12:03]} 14. c4 {[%emt 0:09:20]} Nxd5 {[%emt 0:06:05]} 15. cxd5 {[%emt 0:00:25]} Qg6 {[%emt 0:02:02]} 16. O-O {[%emt 0:04:18]} f5 {[%emt 0:01:55]} 17. f3 {[%emt 0:16:18]} b5 {[%emt 0:05:22]} 18. a4 {[%emt 0:06:03]} Bd7 {[%emt 0:04:05]} 1/2-1/2

[Event "LTU-chT 2019"]
[Site "Lithuania"]
[Date "2019.03.31"]
[Round "5.14"]
[White "Dailidenas, Justas"]
[Black "Muningis, Paulius"]
[Result "0-1"]
[ECO "B32"]
[WhiteElo "1658"]
[BlackElo "2146"]
[Annotator "NA"]
[PlyCount "70"]
[EventDate "2019.01.26"]
[EventType "team-tourn"]
[EventCountry "LTU"]
[SourceTitle "playchess.com"]
[Source "ChessBase"]
[SourceQuality "1"]
[TimeControl "40/5400+30:1800+30"]

1. e4 {[%emt 0:00:00]} c5 {[%emt 0:00:39]} 2. Nf3 {[%emt 0:00:00]} Nc6 {[%emt 0:14:48]} 3. d4 {[%emt 0:00:00]} cxd4 {[%emt 0:00:04]} 4. Nxd4 {[%emt 0:00:00]} e5 {[%emt 0:03:12]} 5. Nb5 {[%emt 0:00:07]} d6 {[%emt 0:11:52]} 6. N1c3 {[%emt 0:00:28]} a6 {[%emt 0:00:37]} 7. Na3 {[%emt 0:00:12]} Nf6 {[%emt 0:02:25]} 8. Bg5 {[%emt 0:01:34]} Be7 {[%emt 0:03:59]} 9. Bxf6 {[%emt 0:01:11] B33: Sicilian: Pelikan and Sveshnikov Variations} (9. Nc4 Nd4 10. Bxf6 Bxf6 11. Nd5 O-O 12. c3 Nc6 13. Ndb6 Rb8 14. Qxd6 Be6 15. Be2 Bg5 16. Qxd8 Rfxd8 17. h4 Be7 18. b4 f5 19. exf5 Bxf5 {1-0 (42) Areshchenko,A (2655)-Bogdanovich,S (2590) Lvov 2014}) 9... gxf6 {[%emt 0:07:01]} 10. Nc4 {[%emt 0:08:20]} f5 {[%emt 0:05:54]} 11. Nd5 {[%emt 0:05:32]} fxe4 {[%emt 0:02:54]} 12. Nxe7 {[%emt 0:00:48]} Kxe7 {[%emt 0:09:24]} 13. Qd5 $146 {[%emt 0:02:38]} ({Predecessor:} 13. Qh5 b5 14. Ne3 {½-½ (14) Senkyr,M (1925)-Vanka,M (2247) Zlate Hory 2006}) 13... Be6 {[%emt 0:13:05]} 14. Qxe4 {[%emt 0:00:07]} d5 {[%emt 0:01:30]} 15. Qh4+ {[%emt 0:00:05]} Ke8 {[%emt 0:02:21]} 16. Qxd8+ {[%emt 0:00:31]} Rxd8 {[%emt 0:00:02]} 17. Nd2 {[%emt 0:01:44]} Nb4 {[%emt 0:04:06]} 18. Kd1 {[%emt 0:01:58]} Rg8 {[%emt 0:01:19]} 19. g3 {[%emt 0:01:44]} Ke7 {[%emt 0:01:10]} 20. Bg2 {[%emt 0:01:32]} Rc8 {[%emt 0:00:18]} 21. c3 {[%emt 0:01:27]} Nd3 {[%emt 0:00:33]} 22. Ke2 {[%emt 0:00:01]} Nxb2 {[%emt 0:04:23]} 23. Rab1 {[%emt 0:00:01]} Na4 $17 {[%emt 0:00:09]} 24. Rxb7+ {[%emt 0:00:06]} Kf6 {[%emt 0:00:09]} 25. Nb1 {[%emt 0:08:17]} Rb8 {[%emt 0:01:19]} 26. Rb3 {[%emt 0:02:18]} Nc5 {[%emt 0:01:16]} 27. Ra3 {[%emt 0:02:53]} Rb2+ {[%emt 0:00:33]} 28. Nd2 {[%emt 0:00:01]} Rgb8 {[%emt 0:00:20]} 29. Rc1 {[%emt 0:01:51]} e4 {[%emt 0:01:58]} 30. Ke3 {[%emt 0:01:06]} Nd3 {[%emt 0:01:11]} 31. Rf1 {[%emt 0:01:31]} Ne5 {[%emt 0:04:23]} 32. f3 {[%emt 0:00:28]} Rxd2 {[%emt 0:00:13]} 33. Kxd2 {[%emt 0:00:07]} Nc4+ {[%emt 0:00:05]} 34. Kc1 {[%emt 0:01:01]} Nxa3 {[%emt 0:00:25]} 35. fxe4+ {[%emt 0:00:04]} Ke5 {[%emt 0:00:15]} 0-1

[Event "LTU-chT 2019"]
[Site "Lithuania"]
[Date "2019.03.31"]
[Round "5.15"]
[White "Adomaitis, Edgaras"]
[Black "Ramanauskaite, Giedre"]
[Result "1-0"]
[ECO "A05"]
[WhiteElo "1889"]
[BlackElo "1870"]
[Annotator "NA"]
[PlyCount "61"]
[EventDate "2019.01.26"]
[EventType "team-tourn"]
[EventCountry "LTU"]
[SourceTitle "playchess.com"]
[Source "ChessBase"]
[SourceQuality "1"]
[TimeControl "40/5400+30:1800+30"]

{[%evp 8,32,14,25,30,14,42,39,37,46,25,-1,10,-97,0,-13,-18,0,1,-16,-12,-104,-21,-84,-85,-100,-40]} 1. Nf3 {[%emt 0:00:00]} Nf6 {[%emt 0:00:00]} 2. d4 {[%emt 0:00:00]} e6 {[%emt 0:01:15]} 3. g3 {[%emt 0:00:00]} c5 {[%emt 0:01:50]} 4. Bg2 {[%emt 0:01:20]} Nc6 {[%emt 0:03:21]} 5. O-O {[%emt 0:02:17]} cxd4 {[%emt 0:03:55] LiveBook: 263 Games} 6. Nxd4 {[%emt 0:00:56]} Bc5 {[%emt 0:02:31]} 7. Nb3 {[%emt 0:00:21]} Be7 {[%emt 0:00:46]} 8. c4 {[%emt 0:02:35]} d5 {[%emt 0:01:57]} 9. N1d2 {[%emt 0:04:42] E01: Catalan: Early deviations} (9. cxd5 Nxd5 10. e4 Ndb4 11. Nc3 O-O 12. Be3 Qxd1 13. Raxd1 b6 14. f4 Ba6 15. Rf2 Rad8 16. Rfd2 Rxd2 17. Rxd2 Rd8 18. Bf1 Rxd2 19. Nxd2 Bxf1 20. Kxf1 {1-0 (51) Roiz,M (2658)-Eljanov,P (2716) Netanya 2009}) 9... O-O {[%emt 0:01:17]} 10. e4 $146 {[%emt 0:01:29] [#]} ({Predecessor:} 10. cxd5 $11 exd5 11. Nf3 Bg4 12. h3 Bf5 13. Be3 Re8 14. Rc1 Qd7 15. Kh2 {½-½ (31) Summermatter,D (2335)-Landenbergue,C (2405) Switzerland 1993}) 10... dxc4 {[%emt 0:02:53]} (10... d4 $1 $17 11. e5 Nxe5) 11. Nxc4 {[%emt 0:00:09]} e5 {[%emt 0:00:19]} 12. Bg5 {[%emt 0:05:47]} Bg4 {[%emt 0:01:23]} 13. f3 {[%emt 0:01:48]} Be6 {[%emt 0:00:12]} 14. Rc1 {[%emt 0:02:00] [#]} (14. Qxd8 $1 $11 Rfxd8 15. Rfc1) 14... b5 {[%emt 0:03:36]} (14... Nb4 $1 $17 {[%cal Rb4a2]} 15. Qxd8 (15. Nxe5 $2 Nxa2 16. Qxd8 Bxd8 $19) 15... Rfxd8) 15. Ne3 {[%emt 0:04:45]} (15. Qxd8 $1 $11 {remains equal.} Rfxd8 16. Nca5) 15... Qb6 {[%emt 0:00:32]} 16. Kh1 {[%emt 0:00:12]} Rfd8 $15 {[%emt 0:05:53]} 17. Qe1 {[%emt 0:01:28]} h6 {[%emt 0:00:37]} 18. Bxf6 {[%emt 0:00:13]} Bxf6 {[%emt 0:00:08]} 19. Nd5 {[%emt 0:02:39]} Bxd5 {[%emt 0:02:01]} 20. exd5 {[%emt 0:00:09]} Rxd5 {[%emt 0:12:34]} 21. f4 {[%emt 0:01:59]} Rd6 {[%emt 0:00:19]} 22. fxe5 {[%emt 0:00:18]} Bxe5 {[%emt 0:01:21]} 23. Bxc6 {[%emt 0:00:11]} Bxg3 {[%emt 0:07:02]} 24. Qxg3 {[%emt 0:00:08]} Rxc6 {[%emt 0:00:06]} 25. Qf3 {[%emt 0:00:07]} Rac8 {[%emt 0:04:32]} 26. Qxf7+ {[%emt 0:00:07]} Kh8 {[%emt 0:00:20]} 27. Rce1 {[%emt 0:01:59]} Qd8 {[%emt 0:13:59]} 28. Re7 {[%emt 0:02:22]} Rg6 {[%emt 0:01:52]} 29. Rfe1 {[%emt 0:01:19]} Kh7 {[%emt 0:14:26]} 30. Re8 {[%emt 0:00:16]} Rf6 {[%emt 0:13:31]} 31. Qg8+ {[%emt 0:00:29]} 1-0

[Event "LTU-chT 2019"]
[Site "Lithuania"]
[Date "2019.03.31"]
[Round "5.16"]
[White "Butvilas, Aistis"]
[Black "Zukauskas, Arnas Povilas"]
[Result "1/2-1/2"]
[ECO "E62"]
[WhiteElo "1983"]
[BlackElo "2108"]
[Annotator "NA"]
[PlyCount "105"]
[EventDate "2019.01.26"]
[EventType "team-tourn"]
[EventCountry "LTU"]
[SourceTitle "playchess.com"]
[Source "ChessBase"]
[SourceQuality "1"]
[TimeControl "40/5400+30:1800+30"]

1. d4 {[%emt 0:00:00]} Nf6 {[%emt 0:00:00]} 2. c4 {[%emt 0:00:00]} d6 {[%emt 0:00:00]} 3. Nf3 {[%emt 0:01:27]} g6 {[%emt 0:00:14]} 4. g3 {[%emt 0:00:07]} Bg7 {[%emt 0:00:06]} 5. Bg2 {[%emt 0:00:13]} O-O {[%emt 0:00:04]} 6. Nc3 {[%emt 0:00:16]} Nc6 {[%emt 0:00:31]} 7. O-O {[%emt 0:00:12] LiveBook: 9504 Games} e5 {[%emt 0:00:15]} 8. d5 {[%emt 0:01:05]} Ne7 {[%emt 0:00:05]} 9. e4 {[%emt 0:00:44]} Ne8 {[%emt 0:00:06]} 10. Ne1 {[%emt 0:02:39]} f5 {[%emt 0:00:06]} 11. Nd3 {[%emt 0:00:24]} Nf6 {[%emt 0:02:58]} 12. Re1 {[%emt 0:07:46] E62: King's Indian: Fianchetto: 6...c6 and Panno Variation (6...Nc6) without ...a6} h6 $146 {[%emt 0:02:30]} ({Predecessor:} 12... c6 13. dxc6 Nxc6 14. b3 Be6 15. Bd2 Qd7 16. Rc1 fxe4 17. Nxe4 Nxe4 18. Bxe4 Nd4 19. f3 Bf5 {1-0 (69) Ljubojevic,L (2550)-Stellwagen,D (2631) Amsterdam 2007}) 13. Rb1 {[%emt 0:16:26]} g5 {[%emt 0:01:28]} 14. exf5 {[%emt 0:00:15]} Bxf5 {[%emt 0:00:36]} 15. Ne4 {[%emt 0:01:05]} Nxe4 {[%emt 0:10:13]} 16. Bxe4 {[%emt 0:00:24]} Bxe4 {[%emt 0:00:04]} 17. Rxe4 {[%emt 0:00:07]} Nf5 {[%emt 0:00:03]} 18. Be3 {[%emt 0:03:30]} Qf6 $15 {[%emt 0:00:32]} 19. Qh5 {[%emt 0:12:31]} Rf7 {[%emt 0:04:30]} 20. Re1 {[%emt 0:03:31]} Bf8 {[%emt 0:08:11]} 21. Kh1 {[%emt 0:20:52]} Ng7 {[%emt 0:01:31]} 22. Qg4 {[%emt 0:00:57]} h5 {[%emt 0:00:56]} 23. Qe2 {[%emt 0:01:30]} g4 {[%emt 0:02:08]} 24. Bd2 {[%emt 0:06:40]} Qg6 {[%emt 0:02:33]} 25. h3 {[%emt 0:05:07]} Ne8 {[%emt 0:06:16]} 26. hxg4 {[%emt 0:02:23]} Nf6 {[%emt 0:00:01]} 27. gxh5 {[%emt 0:00:02]} Qxe4+ {[%emt 0:00:07]} 28. Qxe4 {[%emt 0:00:03]} Nxe4 {[%emt 0:00:07]} 29. Rxe4 {[%emt 0:00:02]} Rf3 {[%emt 0:00:30]} 30. Be3 {[%emt 0:00:40]} Be7 {[%emt 0:01:19]} 31. Kg2 {[%emt 0:00:57]} Raf8 {[%emt 0:01:12]} 32. Ne1 {[%emt 0:01:57]} R3f7 {[%emt 0:01:00]} 33. Kh3 {[%emt 0:04:45]} Kh7 {[%emt 0:00:57]} 34. g4 {[%emt 0:00:49]} a6 {[%emt 0:01:34]} 35. Kg3 {[%emt 0:00:51]} c6 {[%emt 0:00:44]} 36. dxc6 {[%emt 0:01:26]} bxc6 {[%emt 0:00:04]} 37. c5 {[%emt 0:00:10]} dxc5 {[%emt 0:00:47]} 38. g5 {[%emt 0:02:28]} Bxg5 {[%emt 0:01:16]} 39. Bxg5 {[%emt 0:00:13]} Rxf2 {[%emt 0:01:08]} 40. Rxe5 {[%emt 0:00:41]} R2f5 {[%emt 0:01:42]} 41. Rxf5 {[%emt 0:30:52]} Rxf5 {[%emt 0:30:01]} 42. Kg4 {[%emt 0:00:19]} Rf2 {[%emt 0:00:58]} 43. Nd3 {[%emt 0:00:01]} Rg2+ {[%emt 0:00:07]} 44. Kf5 {[%emt 0:01:11]} c4 {[%emt 0:00:04]} 45. Ne5 {[%emt 0:00:23]} Rxb2 {[%emt 0:00:11]} 46. Nxc4 {[%emt 0:00:31]} Rxa2 {[%emt 0:00:34]} 47. Ne5 {[%emt 0:00:52]} a5 {[%emt 0:05:19]} 48. Ng4 a4 49. Nf6+ Kg7 50. h6+ Kf7 51. Bf4 Ra1 52. h7 Rh1 53. Ke4 1/2-1/2

[Event "LTU-chT 2019"]
[Site "Lithuania"]
[Date "2019.03.31"]
[Round "5.17"]
[White "Dambrauskas, Virginijus"]
[Black "Lazaravicius, Aras Jonas"]
[Result "1/2-1/2"]
[ECO "D12"]
[WhiteElo "2277"]
[BlackElo "1874"]
[Annotator "NA"]
[PlyCount "107"]
[EventDate "2019.01.26"]
[EventType "team-tourn"]
[EventCountry "LTU"]
[SourceTitle "playchess.com"]
[Source "ChessBase"]
[SourceQuality "1"]
[TimeControl "40/5400+30:1800+30"]

1. d4 d5 2. c4 {[%emt 0:00:26]} c6 {[%emt 0:00:07]} 3. Nf3 {[%emt 0:00:59]} Nf6 {[%emt 0:00:17]} 4. e3 {[%emt 0:01:14]} Bf5 {[%emt 0:00:56] LiveBook: 6827 Games} 5. Nc3 {[%emt 0:01:14]} e6 {[%emt 0:00:44]} 6. Nh4 {[%emt 0:02:07]} Bg6 {[%emt 0:01:34]} 7. Be2 {[%emt 0:12:05] D12: Slav Defence: 3 Nf3 Nf6 4 e3 Bf5} (7. Nxg6 hxg6 8. Rb1 c5 9. cxd5 exd5 10. g3 Nc6 11. Bg2 Qd7 12. O-O Rd8 13. dxc5 Bxc5 14. b3 Qf5 15. Bb2 O-O {½-½ (65) Lenderman,A (2626)-Robson,R (2682) Saint Louis 2018}) 7... Be7 {[%emt 0:06:45]} 8. O-O {[%emt 0:01:05]} O-O {[%emt 0:04:08]} 9. Nxg6 {[%emt 0:00:14]} hxg6 {[%emt 0:00:10]} 10. Qc2 {[%emt 0:00:27]} Nbd7 {[%emt 0:02:21]} 11. Rd1 {[%emt 0:05:25]} Rc8 {[%emt 0:03:46]} 12. e4 {[%emt 0:05:09]} dxe4 {[%emt 0:09:43]} 13. Nxe4 {[%emt 0:00:31]} Nxe4 {[%emt 0:00:45]} 14. Qxe4 {[%emt 0:00:07]} Nf6 {[%emt 0:02:31]} 15. Qf3 $146 {[%emt 0:02:30]} ({Predecessor:} 15. Qc2 Qc7 {1-0 (41) Alachihin,V (2261)-Golubchikov,A (1828) Uljanovsk 2015}) 15... Qc7 {[%emt 0:10:30]} 16. Be3 {[%emt 0:06:09]} Rfd8 {[%emt 0:03:19]} 17. a3 {[%emt 0:15:17]} a5 {[%emt 0:08:13]} 18. Rab1 {[%emt 0:00:20]} Rd7 {[%emt 0:07:12]} 19. Rd3 {[%emt 0:13:41]} Rcd8 {[%emt 0:05:06]} 20. Rbd1 {[%emt 0:01:10]} b6 {[%emt 0:05:44]} 21. g3 {[%emt 0:04:12]} Kh7 {[%emt 0:06:46]} 22. Bf1 {[%emt 0:08:22]} c5 {[%emt 0:04:36]} 23. dxc5 {[%emt 0:03:45]} Bxc5 {[%emt 0:03:20]} 24. Rxd7 {[%emt 0:03:26]} Rxd7 {[%emt 0:00:10]} 25. Rxd7 {[%emt 0:00:07]} Qxd7 {[%emt 0:00:07]} 26. Bxc5 {[%emt 0:00:11]} bxc5 {[%emt 0:00:05]} 27. Qc3 {[%emt 0:00:11]} Qd8 $11 {[%emt 0:01:51]} 28. b4 {[%emt 0:01:48]} axb4 {[%emt 0:01:07]} 29. axb4 {[%emt 0:00:05]} cxb4 {[%emt 0:00:08]} 30. Qxb4 {[%emt 0:00:06]} Ne4 {[%emt 0:06:28]} 31. Qb7 {[%emt 0:01:03]} f5 {[%emt 0:00:17]} 32. Qb2 {[%emt 0:03:09]} Qd6 {[%emt 0:02:05]} 33. Be2 {[%emt 0:02:09]} Qc5 {[%emt 0:01:59]} 34. Bd3 {[%emt 0:01:50]} Nd6 {[%emt 0:00:34]} 35. Qd2 {[%emt 0:00:57]} e5 {[%emt 0:01:21]} 36. Qe3 {[%emt 0:00:36]} Nb7 {[%emt 0:01:15]} 37. h4 {[%emt 0:01:55]} Qxe3 {[%emt 0:01:35]} 38. fxe3 {[%emt 0:00:08]} e4 {[%emt 0:00:36]} 39. Bc2 {[%emt 0:00:28]} Nc5 {[%emt 0:00:01]} 40. Kf2 {[%emt 0:01:04]} g5 {[%emt 0:01:10]} 41. hxg5 {[%emt 0:31:35]} Kg6 {[%emt 0:30:20]} 42. Ke1 {[%emt 0:03:09]} Kxg5 {[%emt 0:00:00]} 43. Bd1 {[%emt 0:00:00]} Kf6 {[%emt 0:00:00]} 44. Kd2 {[%emt 0:00:00]} Ke5 {[%emt 0:00:00]} 45. Be2 {[%emt 0:00:00]} g5 {[%emt 0:00:00]} 46. Kc3 {[%emt 0:00:00]} g4 {[%emt 0:00:00]} 47. Kb4 {[%emt 0:00:00]} Kd6 {[%emt 0:00:00]} 48. Kb5 {[%emt 0:00:00]} Nd3 {[%emt 0:00:00]} 49. Kb6 {[%emt 0:00:00]} Nc5 {[%emt 0:00:00]} 50. Bd1 {[%emt 0:00:00]} Nd3 {[%emt 0:00:00]} 51. Ba4 {[%emt 0:00:00]} Nc5 {[%emt 0:00:00]} 52. Bd1 {[%emt 0:00:00]} Nd3 {[%emt 0:00:00]} 53. Ba4 {[%emt 0:00:00]} Nc5 {[%emt 0:00:00]} 54. Bd1 {Kd5} 1/2-1/2